Cogmind - Beta 13 @@@ ROGUE MODE // 2024.05.23 @ 19:13:16 Player: Sunsh1n3 Result: Destroyed by as-47363 with Assembled Blade Performance ------------- Evolutions (1) 500 Regions Visited (4) 800 Robots Destroyed (34) 170 Value Destroyed (786) 786 Prototype IDs (1) 20 Alien Tech Used (0) 0 Bonus (67) 67 TOTAL SCORE: 2343 Bonus ------- Follower Combat Kills 67 Cogmind --------- Core Integrity 0/400 Matter 278/300 Energy 82/100 System Corruption 2% Temperature Cool (0) Movement Walking (400) Ox4 Location -9/Mines Parts ------- > --- POWER (1) -------- (None) > --- PROPULSION (4) --- Aluminum Leg > --- UTILITY (2) ------ High-capacity Storage Unit Targeting Computer > --- WEAPON (2) ------- Light Assault Rifle > --- INVENTORY (20) --- Ion Engine Ion Engine Light Ion Engine Heat Sink Heat Sink Improved Heat Sink Small Storage Unit Weight Redist. System Visual Processing Unit Targeting Computer Core Shielding Light Armor Plating Light Armor Plating Light Armor Plating Beam Rifle Heavy Assault Rifle Peak State ------------ > --- POWER ------------ Light Nuclear Core > --- PROPULSION ------- Aluminum Leg Aluminum Leg Aluminum Leg Aluminum Leg > --- UTILITY ---------- High-capacity Storage Unit Targeting Computer > --- WEAPON ----------- Improved Medium Laser Heavy Assault Rifle > --- INVENTORY -------- Ion Engine Ion Engine Light Ion Engine Heat Sink Heat Sink Improved Heat Sink Small Storage Unit Weight Redist. System Visual Processing Unit Targeting Computer Core Shielding Light Armor Plating Light Armor Plating Light Armor Plating Beam Rifle Light Assault Rifle Light Assault Rifle Heavy Assault Rifle [Rating: 16] Favorites ----------- Power Ion Engine Engine Ion Engine Power Core Light Nuclear Core Propulsion Aluminum Leg Leg Aluminum Leg Utility Targeting Computer Storage High-capacity Storage Unit Processor Targeting Computer Weapon Light Assault Rifle Energy Gun Improved Medium Laser Ballistic Gun Light Assault Rifle Launcher Grenade Launcher Build | -11 -10 -10 -9 -9 ------- Run | Yrd Mat Min Mat Min Slots Evolved 2 | . . . 2 . Power . | . . . . . Propulsion 2 | . . . 2 . Utility . | . . . . . Weapon . | . . . . . Parts Attached 29 | 6 1 . 18 4 Power 2 | 1 . . 1 . Engine 1 | 1 . . . . Core 1 | . . . 1 . Reactor . | . . . . . Propulsion 10 | 2 . . 6 2 Treads . | . . . . . Leg 10 | 2 . . 6 2 Wheel . | . . . . . Hover . | . . . . . Flight . | . . . . . Utility 3 | 1 1 . 1 . Device . | . . . . . Storage 2 | 1 . . 1 . Processor 1 | . 1 . . . Hackware . | . . . . . Protection . | . . . . . Artifact . | . . . . . Weapon 14 | 2 . . 10 2 Energy Gun 3 | . . . 3 . Energy Cannon . | . . . . . Ballistic Gun 10 | 2 . . 6 2 Ballistic Cannon . | . . . . . Launcher 1 | . . . 1 . Special Weapon . | . . . . . Impact Weapon . | . . . . . Slashing Weapon . | . . . . . Piercing Weapon . | . . . . . Special Melee Weapon . | . . . . . Unidentified Prototypes 1 | . . . 1 . Parts Lost 18 | . . . 10 8 Power 2 | . . . 1 1 Propulsion 9 | . . . 5 4 Utility . | . . . . . Weapon 7 | . . . 4 3 Highest Loss Streak 7 | . . . 4 7 To Critical Strikes 1 | . . . 1 . Average Slot Usage (%) 90 | . 89 100 88 76 Engine 7 | . 14 14 4 . Core 3 | . . . 3 9 Leg 32 | . 28 28 38 24 Storage 12 | . 14 14 11 11 Processor 11 | . 4 14 11 11 Energy Gun 2 | . . . 1 9 Ballistic Gun 20 | . 28 28 18 11 Naked Turns . | . . . . . Heaviest Build 51 | 13 13 13 51 51 Greatest Support 43 | 20 20 20 43 40 Greatest Overweight (x) 4 | 4 . . 2 2 Average Overweight (x) . | 1 . . . 1 Largest Inventory Capacity 20 | 8 8 8 20 20 Average Capacity 15 | 7 8 8 19 20 Most Carried 20 | 4 7 8 18 20 Average Carried 10 | 2 5 7 11 18 Final Capacity 20 | 8 8 8 20 20 Final Carried 18 | 4 7 8 18 16 Class Distribution -------------------- 69% | Mutant 30% | Scavenger-Mutant Dominant Class ---------------- Mutant | -10/Materials Mutant | -10/Mines Mutant | -9/Materials Scavenger-Mutant | -9/Mines Resources | -11 -10 -10 -9 -9 ----------- Run | Yrd Mat Min Mat Min Matter Collected 786 | 238 . 60 429 59 Remotely . | . . . . . Salvage Created 1293 | . . 100 1019 174 Parts 75 | . . 6 59 10 Haulers Intercepted 1 | . . . 1 . Recyclers Shooed 7 | . . 1 6 . Parts Field Recycled . | . . . . . Retrieved Matter . | . . . . . Parts Self-Destructed . | . . . . . Prevented . | . . . . . Kills | -11 -10 -10 -9 -9 ------- Run | Yrd Mat Min Mat Min Combat Hostiles Destroyed 25 | . . 2 17 6 Guns 24 | . . 2 16 6 AOE 1 | . . . 1 . Classes Destroyed 10 | . . 2 8 . Worker 1 | . . . 1 . Hauler 1 | . . . 1 . Recycler 5 | . . 1 4 . Operator 1 | . . . 1 . Watcher 1 | . . . 1 . Swarmer 8 | . . 2 3 3 Grunt 11 | . . . 9 2 Brawler 2 | . . . 1 1 Duelist 1 | . . . 1 . Sentry 3 | . . . 3 . Best Kill Streak 5 | . . 2 5 3 Combat Bots Only 3 | . . 2 3 3 Max Kills in Single Turn 1 | . . 1 1 1 Gunslinging . | . . . . . Exploded 1 | . . . 1 . Melee . | . . . . . Uniques/NPCs Destroyed . | . . . . . Combat | -11 -10 -10 -9 -9 -------- Run | Yrd Mat Min Mat Min Hostile Shots Fired 203 | . . 6 128 69 Missed 66 | . . 3 44 19 Damage Taken 2000 | . . 25 1219 756 Core 416 | . . . 166 250 Absorbed by Shields . | . . . . . Core Remaining (%) 100 | 100 . 100 . . Volleys Fired 120 | . . 7 91 22 Largest 2 | . . 2 2 2 Hottest 85 | . . 40 85 79 Shots Fired 204 | . . 14 153 37 Gun 202 | . . 14 151 37 Cannon . | . . . . . Launcher 2 | . . . 2 . Special . | . . . . . Kinetic 169 | . . 14 133 22 Thermal 26 | . . . 11 15 Explosive 2 | . . . 2 . Electromagnetic 7 | . . . 7 . Robot Hit Streak 18 | . . 1 18 10 Robot Miss Streak 4 | . . 3 4 2 Penetration Max . | . . . . . Secondary Targets 4 | . . . 4 . Max Gunslinging Chain 1 | . . . 1 . Shots Hit Robots 144 | . . 4 113 27 Core Hits 60 | . . 4 45 11 Critical Kills . | . . . . . Critical Parts Destroyed 3 | . . . 3 . Critical Strikes 6 | . . . 3 3 Burn 3 | . . . . 3 Destroy 3 | . . . 3 . Melee Attacks . | . . . . . Impact . | . . . . . Slashing . | . . . . . Piercing . | . . . . . Sneak Attacks . | . . . . . Combat Hostiles . | . . . . . Follow-up Attacks . | . . . . . Damage Inflicted 1906 | . . 60 1422 424 Guns 1782 | . . 60 1298 424 Cannons . | . . . . . Explosions 124 | . . . 124 . Melee . | . . . . . Ramming . | . . . . . Kinetic 1391 | . . 60 1111 220 Thermal 346 | . . . 142 204 Explosive 94 | . . . 94 . Electromagnetic 75 | . . . 75 . Impact . | . . . . . Slashing . | . . . . . Piercing . | . . . . . Highest Corruption 2 | . . . 2 2 Average Corruption 2 | . . . 2 2 Corruption Purged . | . . . . . Corruption Blocked . | . . . . . Effects 12 | . . . 9 3 Message Errors 3 | . . . 1 2 Matter Fused 2 | . . . 2 . Heat Flow Errors 4 | . . . 3 1 Parts Fused 1 | . . . 1 . Data Loss (minor) 1 | . . . 1 . Misfires 1 | . . . 1 . Overload Shots . | . . . . . Overflow Damage 1 | . . . 1 . Projectiles . | . . . . . Explosions 1 | . . . 1 . Melee . | . . . . . Knockbacks . | . . . . . Impact . | . . . . . Kinetic . | . . . . . Secondary . | . . . . . Self-Inflicted Damage 108 | . . . 108 . Shots 3 | . . . 3 . Rammed . | . . . . . Targets Rammed . | . . . . . Kicked . | . . . . . Crushed . | . . . . . Highest Temperature 283 | . . . 270 283 Average Temperature 79 | . . . 73 92 Received Heat Transfer 460 | . . . 405 55 Effects 3 | . . . . 3 Energy Bleed 1 | . . . . 1 Interference 2 | . . . . 2 Siege Activations . | . . . . . Robots Corrupted . | . . . . . Combat Hostiles . | . . . . . Parts Fried . | . . . . . Impact Corruptions . | . . . . . Robots Melted . | . . . . . Combat Hostiles . | . . . . . Parts Melted 1 | . . . . 1 Heat Transferred 925 | . . . 259 666 Parts Sabotaged . | . . . . . Parts Stolen . | . . . . . Parts Stripped . | . . . . . Power Chain Reactions 1 | . . . 1 . Alert | -11 -10 -10 -9 -9 ------- Run | Yrd Mat Min Mat Min Peak Influence 353 | . . 98 353 231 Initial 111 | . . . 37 111 Average 138 | . . 34 218 191 Maximum Alert Level 1 | . . . 1 1 Low Security (%) 65 | 100 100 100 38 61 Level 1 34 | . . . 61 38 Level 2 . | . . . . . Level 3 . | . . . . . Level 4 . | . . . . . Level 5 . | . . . . . High Security . | . . . . . Max Security . | . . . . . Squads Dispatched 2 | . . . 2 . Investigation . | . . . . . Extermination . | . . . . . Reinforcement 2 | . . . 2 . Assault . | . . . . . Garrison . | . . . . . Intercept . | . . . . . Searches Triggered . | . . . . . Construction Impeded . | . . . . . Haulers Reinforced . | . . . . . Active Scanning Responses . | . . . . . Cargo Convoy Interrupts . | . . . . . Stealth | -11 -10 -10 -9 -9 --------- Run | Yrd Mat Min Mat Min Distress Signals 2 | . . . 2 . Communications Jammed . | . . . . . Distress Signals . | . . . . . Times Spotted 50 | . . 4 26 20 Peak Tracking Total 11 | . . 3 5 11 Tactical Retreats 2 | . . . 1 1 Traps | -11 -10 -10 -9 -9 ------- Run | Yrd Mat Min Mat Min Traps Triggered . | . . . . . Indirectly . | . . . . . Trap Hack Attempts . | . . . . . Triggered . | . . . . . Disarmed . | . . . . . Reprogrammed . | . . . . . Reused . | . . . . . Traps Extracted . | . . . . . Installed . | . . . . . Triggered . | . . . . . Machines | -11 -10 -10 -9 -9 ---------- Run | Yrd Mat Min Mat Min Machines Disabled . | . . . . . Max in Single Turn . | . . . . . Machines Repaired . | . . . . . Machines Dismantled . | . . . . . Machines Sabotaged . | . . . . . Overloaded Fab Kills . | . . . . . Hacking | -11 -10 -10 -9 -9 --------- Run | Yrd Mat Min Mat Min Machines Accessed 1 | . . . 1 . Terminals . | . . . . . Fabricators . | . . . . . Repair Stations . | . . . . . Recycling Units 1 | . . . 1 . Scanalyzers . | . . . . . Garrison Access . | . . . . . Total Hacks 2 | . . . 2 . Successful 2 | . . . 2 . Failed . | . . . . . Catastrophic . | . . . . . Database Lockouts . | . . . . . Manual . | . . . . . Terminals . | . . . . . Fabricators . | . . . . . Repair Stations . | . . . . . Recycling Units 2 | . . . 2 . Scanalyzers . | . . . . . Garrison Access . | . . . . . Terminal Hacks . | . . . . . Fabricator Hacks . | . . . . . Repair Station Hacks . | . . . . . Recycling Unit Hacks 2 | . . . 2 . Report Inventory 1 | . . . 1 . Retrieve Components 1 | . . . 1 . Scanalyzer . | . . . . . Garrison Access Hacks . | . . . . . Unauthorized Hacks . | . . . . . Terminals . | . . . . . Fabricators . | . . . . . Repair Stations . | . . . . . Recycling Units . | . . . . . Scanalyzers . | . . . . . Garrison Access . | . . . . . Data Cores Recovered . | . . . . . Used . | . . . . . Hacking Detections . | . . . . . Full Trace Events . | . . . . . Feedback Events . | . . . . . Feedback Blocked . | . . . . . Robot Schematics Acquired . | . . . . . Robots Built . | . . . . . Authchips . | . . . . . Time . | . . . . . Total Robot Build Rating . | . . . . . Part Schematics Acquired . | . . . . . Parts Built . | . . . . . Authchips . | . . . . . Time . | . . . . . Total Part Build Rating . | . . . . . Parts Repaired . | . . . . . Time . | . . . . . Parts Recycled . | . . . . . Recycled Matter . | . . . . . Retrieved Matter . | . . . . . Retrieved Components 10 | . . . 10 . Parts Scanalyzed . | . . . . . Part Schematics Acquired . | . . . . . Parts Damaged . | . . . . . Bothacking | -11 -10 -10 -9 -9 ------------ Run | Yrd Mat Min Mat Min Used RIF Installer . | . . . . . Robots Hacked . | . . . . . Non-combat . | . . . . . Combat . | . . . . . Robot Hacks Applied . | . . . . . Relay Couplers Released . | . . . . . Fabnet Peak Effective % . | . . . . . Robots Rewired . | . . . . . Allies Hacked . | . . . . . Hacks Repelled . | . . . . . Allies | -11 -10 -10 -9 -9 -------- Run | Yrd Mat Min Mat Min Total Allies 3 | . . 3 . . Largest Group 3 | . . 3 1 . Highest-Rated Group 40 | . . 40 16 . Highest-Rated Ally 16 | . . 16 16 . Total Orders 4 | . . 3 1 . GUARD 3 | . . 2 1 . AID 1 | . . 1 . . Ally Attacks 23 | . . 22 1 . Total Damage 161 | . . 161 . . Kills 3 | . . 3 . . Allies Corrupted . | . . . . . Allies Melted . | . . . . . Intel | -11 -10 -10 -9 -9 ------- Run | Yrd Mat Min Mat Min Robot Analysis Total . | . . . . . Derelict Logs Recovered 1 | . . . . 1 Drone Launches . | . . . . . Drone Recoveries . | . . . . . Exploration | -11 -10 -10 -9 -9 ------------- Run | Yrd Mat Min Mat Min Turns Passed 1288 | 85 73 344 612 174 Spaces Moved 582 | 48 57 256 177 44 Core 19 | 19 . . . . Treads . | . . . . . Legs 563 | 29 57 256 177 44 Wheels . | . . . . . Hover . | . . . . . Flight . | . . . . . Fastest Speed 50 | 50 120 120 120 190 Average Speed 150 | 144 120 120 185 229 Slowest Speed 260 | 250 120 120 260 260 Overloaded Moves . | . . . . . Propulsion Burnouts . | . . . . . Robots Hopped . | . . . . . Cave-ins Triggered . | . . . . . Exploration Rate (%) 18 | 4 11 44 21 12 Regions Visited 4 Branch Regions 2 Pre-discovered Areas 1 | . . . . 1 Known Exits Taken . | . . . . . Unknown Exits Taken 4 | 1 1 1 1 . Scrap Searched . | . . . . . Spaces Dug . | . . . . . Terrain Destroyed 17 | . . . 17 . Melee . | . . . . . Projectile . | . . . . . AOE 17 | . . . 17 . Terrain Rammed . | . . . . . Walls Destroyed . | . . . . . Machines Disabled . | . . . . . Actions | -11 -10 -10 -9 -9 --------- Run | Yrd Mat Min Mat Min Total 807 | 63 61 282 319 82 Wait 34 | . . 11 13 10 Move 578 | 47 56 255 176 44 Hop . | . . . . . Pick Up 42 | 10 4 5 21 2 Fast Attach . | . . . . . Attach 22 | 6 1 . 11 4 Detach . | . . . . . Swap 7 | . . . 7 . Drop 4 | . . 4 . . Fire 120 | . . 7 91 22 Melee . | . . . . . Ram . | . . . . . Kick . | . . . . . Crush . | . . . . . Escape Stasis . | . . . . . Rewire . | . . . . . Trap . | . . . . . Miscellaneous . | . . . . . Route ------- -11/Scrapyard -10/Materials -10/Mines -9/Materials -9/Mines History --------- Turn | Location | Event 31 | -11/Scrapyard | Discovered new exit (range 16) 86 | -11/Scrapyard | Entered Materials 151 | -10/Materials | Discovered new exit (range 6) 159 | -10/Materials | Entered Mines 162 | -10/Mines | Assisted by bots powering up and referring to "LRC-V3" 306 | -10/Mines | Build established: Mutant 390 | -10/Mines | Discovered new exit (range 10) 503 | -10/Mines | Entered Materials 503 | -9/Materials | Accompanied by 1 ally 503 | -9/Materials | Evolved 2 slots: Propulsion x2 738 | -9/Materials | Lost 4 parts (2n2w) 802 | -9/Materials | Lost 3 parts (1p1n1w) 1069 | -9/Materials | Discovered new exit (range 13) 1115 | -9/Materials | Entered Mines 1122 | -9/Mines | Core integrity fell below 50% 1171 | -9/Mines | Build established: Scavenger-Mutant 1218 | -9/Mines | Assembled infested the area 1223 | -9/Mines | Assisted by a Guerilla fighting off Assembled 1258 | -9/Mines | Learned location of Zion (-7) 1280 | -9/Mines | Core integrity fell below 20% 1289 | -9/Mines | Destroyed by as-47363 with Assembled Blade Last Messages --------------- Plating. 01236_ Acquired 23 matter. 01237_ Aluminum Leg destroyed. 01239_ R-06 Scavenger collects Lgt. Treads. 01246_ R-06 Scavenger destroyed. 01256_ Lgt. Nuclear Core destroyed. 01258_ Acquired derelict log, extracted data. World map updated: -7/Zion. 01264_ Imp. Medium Laser destroyed. 01267_ Aluminum Leg destroyed. 01273_ C-30 ARC bursts open, deploying its payload. 01273_ G-34 Mercenary unfolds itself. 01277_ Aluminum Leg destroyed. 01282_ G-34 Mercenary destroyed. 01282_ Hvy. Assault Rifle destroyed. 01284_ Lgt. Assault Rifle destroyed. 01285_ The unstable cave ceiling collapses. 01285_ U-05 Engineer builds a Wall. 01289_ U-05 Engineer lays Concrete. Map ----- +----------------------------------------------------+ | | | | | | | | | | | | | | | | | | | | | | | ?????????????????????????????????????????????????? | | ?????????????????????????????????????????????????? | | ?????????????????????????????????????????????????? | | ?????????????????????????????????????????????????? | | ?????????????????????????????????????????????????? | | ?????????????????????????????????????????????????? | | ?????????????????????########???????????????###### | | ?????????????????????? #????????######## = | | ?????????????????????? #????????# % | | ???????????????????????%""" ?????????# ##### =% | | ??????????????????????? """ ???###???# #???# [% | | ????????????????????????"""???? #???# #???## = | | ???????????????????????? g????# #???# #????## # | | ????????????????????????#g#????# #???# #???####### | | ????????????????????????#@#????# #####/#### ##### | | ????????????????????????#a#????# #=%= %% | | ????????????????????????# ###### # !! | | ????????????????????????# ### ####### | | ????????????????????????## ## #?#!#???????? | | ?????????????????????????? ?# #####?#=%?????????? | | ?????????????????????????? #?????###?????????? | | ???????????????????????? #?????????????????? | | ???????????????????????### ####?????????????????? | | ???????????????????????? ?????????????????????? | | ??????????????????????? ?????????????????????? | | ??????????????????????# ?u ????????????????????? | | ?????????????????????? ?? ????????????????????? | | ?????????????????????###??? ????????????????????? | | ???????????????????????????# ????????????????????? | | ???????????????????????????#?????????????????????? | | ?????????????????????????????????????????????????? | | ?????????????????????????????????????????????????? | | ?????????????????????????????????????????????????? | | ?????????????????????????????????????????????????? | | ?????????????????????????????????????????????????? | | ?????????????????????????????????????????????????? | | ?????????????????????????????????????????????????? | | ?????????????????????????????????????????????????? | | ?????????????????????????????????????????????????? | +----------------------------------------------------+ Best States ------------- Heat Dissipation 28 Energy Generation 14 Energy Capacity 250 Matter Stores 300 Matter Capacity 300 Sight Range 16 Terrain Scan Density 10 Evasion (%) 55 Targeting Accuracy 5 Item Schematics ----------------- None Robot Schematics ------------------ None Fabricated ------------ Nothing Alien Tech Used ----------------- None Achievements -------------- Hey, That's Mine! Challenges ------------ None Game ------ Seed SignalRiotDesublimator Manual? 0 Play Time 00:15:24 Cumulative 9.4 hours Start 2024.05.23 @ 18:59:27 End 2024.05.23 @ 19:13:16 Sessions 1 Manual Loads 0 Difficulty Rogue Special Mode None Game No. 18 Rogue 18 Adventurer 0 Explorer 0 Win Type - Total 0 Types 0/0/0/0/0/0/0/0/0 Lore% 13 Gallery% 19 Achievement% 13 Wizard Run 0 Options --------- Layout 1 ASCII 0 Keyboard 0 Movement Mouse Keybinds 0 Fullscreen 2 Font 24/Smallcaps Map View 50x35 Zoom Use 0% Tactical HUD 1 Map Filters NONE Filters NONE Steam 1 RUN: f4299007-23eb-4d02-8a1f-9db191f38573